fUSD/lending_fUSD_20260621
["ID","MTS","AMOUNT","RATE_DAILY","PERIOD"]
[425866018,1782011460000,-156.01520065,0.00029863,2]
[425866021,1782011460000,-500.0,0.00029863,2]
[425866022,1782011460000,-500.0,0.00029863,2]
[425866019,1782011460000,-237.49547066,0.00029863,2]
[425866023,1782011460000,-500.0,0.00029863,2]
[425866024,1782011460000,-743.52,0.00029863,2]
[425866025,1782011460000,-500.0,0.00029863,2]
[425866016,1782011460000,-2720.85,0.00029863,2]
[425866027,1782011460000,-613.06,0.00029863,2]
[425866029,1782011460000,-500.0,0.00029863,2]
[425866026,1782011460000,-500.0,0.00029863,2]
[425866033,1782011460000,-500.0,0.00029863,2]
[425866030,1782011460000,-500.0,0.00029863,2]
[425866031,1782011460000,-4658.21,0.00029863,2]
[425866032,1782011460000,-500.0,0.00029863,2]
[425866035,1782011460000,-500.0,0.00029863,2]
[425866034,1782011460000,-500.0,0.00029863,2]
[425866002,1782011460000,-500.0,0.00029863,2]
[425866020,1782011460000,-500.0,0.00029863,2]
[425866015,1782011460000,-500.0,0.00029863,2]
[425866028,1782011460000,-500.0,0.00029863,2]
[425866012,1782011460000,-1668.75,0.00029863,2]
[425865996,1782011460000,-2478.96,0.00029863,2]
[425866014,1782011460000,-538.66,0.00029863,2]
[425865995,1782011460000,-500.0,0.00029863,2]
[425865993,1782011460000,-1018.86,0.00029863,2]
[425865999,1782011460000,-500.0,0.00029863,2]
[425865991,1782011460000,-532.76,0.00029863,2]
[425865998,1782011460000,-500.0,0.00029863,2]
[425865997,1782011460000,-500.0,0.00029863,2]
[425866001,1782011460000,-499.13764294,0.00029863,2]
[425865994,1782011460000,-500.0,0.00029863,2]
[425866005,1782011460000,-500.0,0.00029863,2]
[425866006,1782011460000,-550.12,0.00029863,2]
[425866004,1782011460000,-2048.65,0.00029863,2]
[425866007,1782011460000,-500.0,0.00029863,2]
[425866008,1782011460000,-901.37,0.00029863,2]
[425866009,1782011460000,-500.0,0.00029863,2]
[425866010,1782011460000,-500.0,0.00029863,2]
[425866013,1782011460000,-918.53,0.00029863,2]
[425866003,1782011460000,-907.64,0.00029863,2]
[425866011,1782011460000,-3198.43,0.00029863,2]
[425866076,1782011461000,-500.0,0.00029863,2]
[425866075,1782011461000,-500.0,0.00029863,2]
[425866084,1782011461000,-500.0,0.00029863,2]
[425866085,1782011461000,-523.9782396,0.00029863,2]
[425866073,1782011461000,-522.58757195,0.00029863,2]
[425866071,1782011461000,-500.0,0.00029863,2]
[425866067,1782011461000,-500.0,0.00029863,2]
[425866069,1782011461000,-500.0,0.00029863,2]
[425866070,1782011461000,-500.0,0.00029863,2]
[425866077,1782011461000,-500.0,0.00029863,2]
[425866068,1782011461000,-500.0,0.00029863,2]
[425866074,1782011461000,-500.0,0.00029863,2]
[425866080,1782011461000,-500.0,0.00029863,2]
[425866091,1782011461000,-500.0,0.00029863,2]
[425866079,1782011461000,-500.0,0.00029863,2]
[425866082,1782011461000,-803.37,0.00029863,2]
[425866078,1782011461000,-500.0,0.00029863,2]
[425866083,1782011461000,-5180.59,0.00029863,2]
[425866086,1782011461000,-745.01,0.00029863,2]
[425866089,1782011461000,-500.0,0.00029863,2]
[425866088,1782011461000,-872.58,0.00029863,2]
[425866093,1782011461000,-500.0,0.00029863,2]
[425866090,1782011461000,-500.0,0.00029863,2]
[425866087,1782011461000,-884.2,0.00029863,2]
[425866092,1782011461000,-637.08413484,0.00029863,2]
[425866095,1782011461000,-500.0,0.00029863,2]
[425866066,1782011461000,-500.0,0.00029863,2]
[425866081,1782011461000,-428.57773196,0.00029863,2]
[425866072,1782011461000,-500.0,0.00029863,2]
[425866045,1782011461000,-500.0,0.00029863,2]
[425866065,1782011461000,-500.0,0.00029863,2]
[425866097,1782011461000,-500.0,0.00029863,2]
[425866036,1782011461000,-500.0,0.00029863,2]
[425866043,1782011461000,-500.0,0.00029863,2]
[425866048,1782011461000,-500.0,0.00029863,2]
[425866038,1782011461000,-500.0,0.00029863,2]
[425866047,1782011461000,-638.93,0.00029863,2]
[425866046,1782011461000,-500.0,0.00029863,2]
[425866044,1782011461000,-500.0,0.00029863,2]
[425866042,1782011461000,-500.0,0.00029863,2]
[425866040,1782011461000,-654.48,0.00029863,2]
[425866041,1782011461000,-1545.47,0.00029863,2]
[425866039,1782011461000,-500.0,0.00029863,2]
[425866050,1782011461000,-500.0,0.00029863,2]
[425866060,1782011461000,-500.0,0.00029863,2]
[425866049,1782011461000,-852.71,0.00029863,2]
[425866052,1782011461000,-500.0,0.00029863,2]
[425866057,1782011461000,-500.0,0.00029863,2]
[425866056,1782011461000,-636.47,0.00029863,2]
[425866055,1782011461000,-500.0,0.00029863,2]
[425866054,1782011461000,-500.0,0.00029863,2]
[425866051,1782011461000,-500.0,0.00029863,2]
[425866053,1782011461000,-500.0,0.00029863,2]
[425866059,1782011461000,-500.0,0.00029863,2]
[425866058,1782011461000,-500.0,0.00029863,2]
[425866062,1782011461000,-500.0,0.00029863,2]
[425866061,1782011461000,-525.95,0.00029863,2]
[425866063,1782011461000,-2244.17,0.00029863,2]
[425866064,1782011461000,-500.0,0.00029863,2]
[425866098,1782011461000,-523.14,0.00029863,2]
[425866037,1782011461000,-606.62,0.00029863,2]
[425866096,1782011461000,-500.0,0.00029863,2]
[425866132,1782011461000,-500.0,0.00029863,2]
[425866133,1782011461000,-511.66,0.00029863,2]
[425866128,1782011461000,-500.0,0.00029863,2]
[425866131,1782011461000,-500.0,0.00029863,2]
[425866134,1782011461000,-500.0,0.00029863,2]
[425866130,1782011461000,-500.0,0.00029863,2]
[425866137,1782011461000,-500.0,0.00029863,2]
[425866139,1782011461000,-553.12,0.00029863,2]
[425866140,1782011461000,-834.41,0.00029863,2]
[425866138,1782011461000,-500.0,0.00029863,2]
[425866143,1782011461000,-500.0,0.00029863,2]
[425866145,1782011461000,-500.0,0.00029863,2]
[425866149,1782011461000,-638.84,0.00029863,2]
[425866148,1782011461000,-942.18,0.00029863,2]
[425866141,1782011461000,-345.76282926,0.00029863,2]
[425866146,1782011461000,-500.0,0.00029863,2]
[425866147,1782011461000,-500.0,0.00029863,2]
[425866142,1782011461000,-616.94,0.00029863,2]
[425866151,1782011461000,-500.0,0.00029863,2]
[425866150,1782011461000,-500.0,0.00029863,2]
[425866152,1782011461000,-500.0,0.00029863,2]
[425866153,1782011461000,-1658.06,0.00029863,2]
[425866156,1782011461000,-500.0,0.00029863,2]
[425866154,1782011461000,-500.0,0.00029863,2]
[425866094,1782011461000,-500.0,0.00029863,2]
[425866155,1782011461000,-500.0,0.00029863,2]
[425866157,1782011461000,-500.0,0.00029863,2]
[425866127,1782011461000,-935.76,0.00029863,2]
[425866125,1782011461000,-500.0,0.00029863,2]
[425866144,1782011461000,-500.0,0.00029863,2]
[425866129,1782011461000,-500.0,0.00029863,2]
[425866135,1782011461000,-500.0,0.00029863,2]
[425866111,1782011461000,-500.0,0.00029863,2]
[425866103,1782011461000,-500.0,0.00029863,2]
[425866102,1782011461000,-613.52,0.00029863,2]
[425866101,1782011461000,-500.0,0.00029863,2]
[425866100,1782011461000,-500.0,0.00029863,2]
[425866110,1782011461000,-500.0,0.00029863,2]
[425866104,1782011461000,-500.0,0.00029863,2]
[425866107,1782011461000,-2372.91,0.00029863,2]
[425866105,1782011461000,-500.0,0.00029863,2]
[425866108,1782011461000,-607.73,0.00029863,2]
[425866109,1782011461000,-500.0,0.00029863,2]
[425866112,1782011461000,-1019.04,0.00029863,2]
[425866117,1782011461000,-704.72,0.00029863,2]
[425866106,1782011461000,-1631.14,0.00029863,2]
[425866114,1782011461000,-500.0,0.00029863,2]
[425866136,1782011461000,-500.0,0.00029863,2]
[425866124,1782011461000,-500.0,0.00029863,2]
[425866121,1782011461000,-500.0,0.00029863,2]
[425866123,1782011461000,-814.29,0.00029863,2]
[425866122,1782011461000,-500.0,0.00029863,2]
[425866119,1782011461000,-500.0,0.00029863,2]
[425866126,1782011461000,-500.0,0.00029863,2]
[425866099,1782011461000,-610.54,0.00029863,2]
[425866120,1782011461000,-500.0,0.00029863,2]
[425866115,1782011461000,-517.44,0.00029863,2]
[425866118,1782011461000,-1492.86,0.00029863,2]
[425866116,1782011461000,-500.0,0.00029863,2]
[425866113,1782011461000,-500.0,0.00029863,2]
[425866204,1782011462000,-500.0,0.00029863,2]
[425866202,1782011462000,-500.0,0.00029863,2]
[425866200,1782011462000,-1065.67,0.00029863,2]
[425866198,1782011462000,-500.0,0.00029863,2]
[425866199,1782011462000,-500.0,0.00029863,2]
[425866196,1782011462000,-152.58506561,0.00029863,2]
[425866214,1782011462000,-491.40629313,0.00029863,2]
[425866195,1782011462000,-869.54,0.00029863,2]
[425866194,1782011462000,-500.0,0.00029863,2]
[425866192,1782011462000,-500.0,0.00029863,2]
[425866193,1782011462000,-500.0,0.00029863,2]
[425866191,1782011462000,-500.0,0.00029863,2]
[425866197,1782011462000,-559.44,0.00029863,2]
[425866189,1782011462000,-500.0,0.00029863,2]
[425866218,1782011462000,-1664.91,0.00029863,2]
[425866212,1782011462000,-500.0,0.00029863,2]
[425866203,1782011462000,-500.0,0.00029863,2]
[425866215,1782011462000,-500.0,0.00029863,2]
[425866201,1782011462000,-500.0,0.00029863,2]
[425866210,1782011462000,-540.58994764,0.00029863,2]
[425866211,1782011462000,-500.0,0.00029863,2]
[425866205,1782011462000,-1000.0,0.00029863,2]
[425866207,1782011462000,-500.0,0.00029863,2]
[425866206,1782011462000,-500.0,0.00029863,2]
[425866209,1782011462000,-500.0,0.00029863,2]
[425866208,1782011462000,-500.0,0.00029863,2]
[425866216,1782011462000,-500.0,0.00029863,2]
[425866190,1782011462000,-801.57,0.00029863,2]
[425866213,1782011462000,-500.0,0.00029863,2]
[425866188,1782011462000,-500.0,0.00029863,2]
[425866159,1782011462000,-1028.12,0.00029863,2]
[425866183,1782011462000,-500.0,0.00029863,2]
[425866161,1782011462000,-500.0,0.00029863,2]
[425866221,1782011462000,-500.0,0.00029863,2]
[425866160,1782011462000,-5405.03,0.00029863,2]
[425866158,1782011462000,-500.0,0.00029863,2]
[425866162,1782011462000,-530.95,0.00029863,2]
[425866164,1782011462000,-500.0,0.00029863,2]
[425866165,1782011462000,-500.0,0.00029863,2]
[425866171,1782011462000,-500.0,0.00029863,2]
[425866167,1782011462000,-1207.68,0.00029863,2]
[425866166,1782011462000,-685.64,0.00029863,2]
[425866163,1782011462000,-500.0,0.00029863,2]
[425866173,1782011462000,-776.81,0.00029863,2]
[425866172,1782011462000,-500.0,0.00029863,2]
[425866177,1782011462000,-500.0,0.00029863,2]
[425866169,1782011462000,-500.0,0.00029863,2]
[425866170,1782011462000,-543.92,0.00029863,2]
[425866175,1782011462000,-3826.69,0.00029863,2]
[425866185,1782011462000,-592.69,0.00029863,2]
[425866174,1782011462000,-500.0,0.00029863,2]
[425866187,1782011462000,-500.0,0.00029863,2]
[425866180,1782011462000,-500.0,0.00029863,2]
[425866186,1782011462000,-1439.36,0.00029863,2]
[425866181,1782011462000,-500.0,0.00029863,2]
[425866179,1782011462000,-500.0,0.00029863,2]
[425866184,1782011462000,-514.40179207,0.00029863,2]
[425866178,1782011462000,-500.0,0.00029863,2]
[425866176,1782011462000,-500.0,0.00029863,2]
[425866182,1782011462000,-1309.86,0.00029863,2]
[425866168,1782011462000,-500.0,0.00029863,2]
[425866219,1782011462000,-500.0,0.00029863,2]
[425866276,1782011462000,-795.37,0.00029863,2]
[425866217,1782011462000,-500.0,0.00029863,2]
[425866262,1782011462000,-635.35,0.00029863,2]
[425866260,1782011462000,-500.0,0.00029863,2]
[425866254,1782011462000,-500.0,0.00029863,2]
[425866263,1782011462000,-500.0,0.00029863,2]
[425866257,1782011462000,-500.0,0.00029863,2]
[425866264,1782011462000,-500.0,0.00029863,2]
[425866256,1782011462000,-500.0,0.00029863,2]
[425866253,1782011462000,-500.0,0.00029863,2]
[425866255,1782011462000,-500.0,0.00029863,2]
[425866258,1782011462000,-603.34240209,0.00029863,2]
[425866266,1782011462000,-300.0,0.00029863,2]
[425866267,1782011462000,-500.0,0.00029863,2]
[425866274,1782011462000,-500.0,0.00029863,2]
[425866261,1782011462000,-500.0,0.00029863,2]
[425866270,1782011462000,-500.0,0.00029863,2]
[425866265,1782011462000,-500.0,0.00029863,2]
[425866268,1782011462000,-174.92044405,0.00029863,2]
[425866273,1782011462000,-932.54,0.00029863,2]
[425866269,1782011462000,-549.91680349,0.00029863,2]
[425866271,1782011462000,-500.0,0.00029863,2]
[425866272,1782011462000,-500.0,0.00029863,2]
[425866277,1782011462000,-153.29381893,0.00029863,2]
[425866278,1782011462000,-1552.0,0.00029863,2]
[425866279,1782011462000,-500.0,0.00029863,2]
[425866281,1782011462000,-758.84,0.00029863,2]
[425866280,1782011462000,-500.0,0.00029863,2]
[425866282,1782011462000,-500.0,0.00029863,2]
[425866222,1782011462000,-575.11,0.00029863,2]
[425866275,1782011462000,-500.0,0.00029863,2]
[425866259,1782011462000,-500.0,0.00029863,2]
[425866283,1782011462000,-500.0,0.00029863,2]
[425866249,1782011462000,-500.0,0.00029863,2]
[425866224,1782011462000,-500.0,0.00029863,2]
[425866225,1782011462000,-500.0,0.00029863,2]
[425866226,1782011462000,-500.0,0.00029863,2]
[425866220,1782011462000,-500.0,0.00029863,2]
[425866227,1782011462000,-500.0,0.00029863,2]
[425866223,1782011462000,-500.0,0.00029863,2]
[425866228,1782011462000,-3313.43,0.00029863,2]
[425866230,1782011462000,-500.0,0.00029863,2]
[425866247,1782011462000,-500.0,0.00029863,2]
[425866240,1782011462000,-500.0,0.00029863,2]
[425866231,1782011462000,-725.65,0.00029863,2]
[425866232,1782011462000,-500.0,0.00029863,2]
[425866233,1782011462000,-500.0,0.00029863,2]
[425866236,1782011462000,-500.0,0.00029863,2]
[425866229,1782011462000,-500.0,0.00029863,2]
[425866235,1782011462000,-500.0,0.00029863,2]
[425866248,1782011462000,-514.90129713,0.00029863,2]
[425866238,1782011462000,-500.0,0.00029863,2]
[425866246,1782011462000,-500.0,0.00029863,2]
[425866252,1782011462000,-500.0,0.00029863,2]
[425866245,1782011462000,-500.0,0.00029863,2]
[425866250,1782011462000,-500.0,0.00029863,2]
[425866242,1782011462000,-500.0,0.00029863,2]
[425866244,1782011462000,-16323.99,0.00029863,2]
[425866243,1782011462000,-500.0,0.00029863,2]
[425866241,1782011462000,-500.0,0.00029863,2]
[425866239,1782011462000,-500.0,0.00029863,2]
[425866234,1782011462000,-3923.16,0.00029863,2]
[425866237,1782011462000,-500.0,0.00029863,2]
[425866251,1782011462000,-5709.41,0.00029863,2]
[425866334,1782011463000,-542.86170368,0.00030135,2]
[425866325,1782011463000,-3000.0,0.00030082,13]
[425866326,1782011463000,-2425.93010201,0.00030082,13]
[425866323,1782011463000,-185.5931221,0.00030005,2]
[425866324,1782011463000,-1078.52515517,0.00030082,13]
[425866314,1782011463000,-571.93,0.0003,2]
[425866319,1782011463000,-1109.69851468,0.00030001,2]
[425866316,1782011463000,-292.75,0.0003,2]
[425866320,1782011463000,-749.0,0.00030001,2]
[425866312,1782011463000,-410.27,0.0003,2]
[425866318,1782011463000,-25000.0,0.0003,2]
[425866321,1782011463000,-749.0,0.00030001,2]
[425866327,1782011463000,-526.30007439,0.00030124,2]
[425866346,1782011463000,-500.0,0.00030135,2]
[425866331,1782011463000,-542.86170368,0.00030135,2]
[425866332,1782011463000,-542.86170368,0.00030135,2]
[425866329,1782011463000,-542.86170368,0.00030135,2]
[425866328,1782011463000,-10400.56,0.00030125,2]
[425866330,1782011463000,-542.86170368,0.00030135,2]
[425866335,1782011463000,-542.86170367,0.00030135,2]
[425866339,1782011463000,-500.0,0.00030135,2]
[425866338,1782011463000,-592.44,0.00030135,2]
[425866340,1782011463000,-500.0,0.00030135,2]
[425866336,1782011463000,-542.86170367,0.00030135,2]
[425866341,1782011463000,-500.0,0.00030135,2]
[425866337,1782011463000,-592.44,0.00030135,2]
[425866322,1782011463000,-749.0,0.00030001,2]
[425866333,1782011463000,-542.86170368,0.00030135,2]
[425866317,1782011463000,-25000.0,0.0003,2]
[425866296,1782011463000,-164.80683182,0.00029869,30]
[425866313,1782011463000,-19589.1,0.0003,2]
[425866345,1782011463000,-500.0,0.00030135,2]
[425866284,1782011463000,-500.0,0.00029863,2]
[425866285,1782011463000,-500.0,0.00029863,2]
[425866288,1782011463000,-500.0,0.00029863,2]
[425866287,1782011463000,-500.0,0.00029863,2]
[425866286,1782011463000,-500.0,0.00029863,2]
[425866289,1782011463000,-769.83,0.00029863,2]
[425866292,1782011463000,-2732.06,0.00029863,2]
[425866291,1782011463000,-500.0,0.00029863,2]
[425866293,1782011463000,-158.12899499,0.00029869,30]
[425866295,1782011463000,-204.0,0.00029869,30]
[425866298,1782011463000,-155.0,0.00029869,30]
[425866294,1782011463000,-173.0,0.00029869,30]
[425866290,1782011463000,-367.391338,0.00029863,2]
[425866299,1782011463000,-154.37889936,0.00029869,30]
[425866300,1782011463000,-240.0,0.00029869,30]
[425866302,1782011463000,-600.0,0.000299,10]
[425866303,1782011463000,-592.44,0.00029999,2]
[425866301,1782011463000,-159.78682544,0.00029898,2]
[425866311,1782011463000,-22500.0,0.0003,2]
[425866305,1782011463000,-4171.0,0.0003,3]
[425866310,1782011463000,-2500.0,0.0003,2]
[425866304,1782011463000,-202.32,0.0003,11]
[425866308,1782011463000,-25000.0,0.0003,2]
[425866307,1782011463000,-267.55,0.0003,2]
[425866309,1782011463000,-2500.0,0.0003,2]
[425866306,1782011463000,-6423.34368097,0.0003,7]
[425866315,1782011463000,-306.88,0.0003,2]
[425866344,1782011463000,-500.0,0.00030135,2]
[425866297,1782011463000,-155.0,0.00029869,30]
[425866343,1782011463000,-500.0,0.00030135,2]
[425866374,1782011463000,-730.17,0.00030136,2]
[425866378,1782011463000,-500.0,0.00030136,2]
[425866377,1782011463000,-500.0,0.00030136,2]
[425866379,1782011463000,-500.0,0.00030136,2]
[425866380,1782011463000,-227.54115495,0.00030136,2]
[425866381,1782011463000,-500.0,0.00030136,2]
[425866382,1782011463000,-500.0,0.00030136,2]
[425866386,1782011463000,-500.0,0.00030136,2]
[425866394,1782011463000,-522.70265637,0.00030136,2]
[425866391,1782011463000,-500.0,0.00030136,2]
[425866397,1782011463000,-810.2,0.00030136,2]
[425866396,1782011463000,-500.0,0.00030136,2]
[425866398,1782011463000,-511.74051271,0.00030136,2]
[425866393,1782011463000,-500.0,0.00030136,2]
[425866388,1782011463000,-500.0,0.00030136,2]
[425866389,1782011463000,-500.0,0.00030136,2]
[425866390,1782011463000,-500.0,0.00030136,2]
[425866392,1782011463000,-500.0,0.00030136,2]
[425866404,1782011463000,-606.51,0.00030136,2]
[425866395,1782011463000,-500.0,0.00030136,2]
[425866387,1782011463000,-500.0,0.00030136,2]
[425866402,1782011463000,-500.0,0.00030136,2]
[425866399,1782011463000,-500.0,0.00030136,2]
[425866401,1782011463000,-573.99323837,0.00030136,2]
[425866400,1782011463000,-500.0,0.00030136,2]
[425866403,1782011463000,-803.51,0.00030136,2]
[425866342,1782011463000,-500.0,0.00030135,2]
[425866385,1782011463000,-500.0,0.00030136,2]
[425866372,1782011463000,-628.69200536,0.00030136,2]
[425866405,1782011463000,-500.0,0.00030136,2]
[425866384,1782011463000,-624.95,0.00030136,2]
[425866348,1782011463000,-500.0,0.00030135,2]
[425866358,1782011463000,-500.0,0.00030136,2]
[425866359,1782011463000,-500.0,0.00030136,2]
[425866351,1782011463000,-390.31812348,0.00030136,2]
[425866347,1782011463000,-500.0,0.00030135,2]
[425866352,1782011463000,-500.0,0.00030136,2]
[425866350,1782011463000,-585.03,0.00030136,2]
[425866353,1782011463000,-189.73443458,0.00030136,2]
[425866354,1782011463000,-500.0,0.00030136,2]
[425866355,1782011463000,-500.0,0.00030136,2]
[425866357,1782011463000,-500.0,0.00030136,2]
[425866356,1782011463000,-503.44622977,0.00030136,2]
[425866362,1782011463000,-500.0,0.00030136,2]
[425866349,1782011463000,-157.89569618,0.00030135,2]
[425866360,1782011463000,-271.3794644,0.00030136,2]
[425866383,1782011463000,-500.0,0.00030136,2]
[425866376,1782011463000,-551.16,0.00030136,2]
[425866361,1782011463000,-271.3794644,0.00030136,2]
[425866373,1782011463000,-500.0,0.00030136,2]
[425866369,1782011463000,-500.0,0.00030136,2]
[425866370,1782011463000,-500.0,0.00030136,2]
[425866365,1782011463000,-500.0,0.00030136,2]
[425866375,1782011463000,-500.0,0.00030136,2]
[425866368,1782011463000,-500.0,0.00030136,2]
[425866366,1782011463000,-500.0,0.00030136,2]
[425866364,1782011463000,-634.67,0.00030136,2]
[425866363,1782011463000,-500.0,0.00030136,2]
[425866371,1782011463000,-500.0,0.00030136,2]
[425866367,1782011463000,-500.0,0.00030136,2]
[425866442,1782011464000,-543.22508646,0.00030136,2]
[425866436,1782011464000,-500.0,0.00030136,2]
[425866446,1782011464000,-500.0,0.00030136,2]
[425866441,1782011464000,-236.71766486,0.00030136,2]
[425866438,1782011464000,-500.0,0.00030136,2]
[425866440,1782011464000,-500.0,0.00030136,2]
[425866444,1782011464000,-500.0,0.00030136,2]
[425866447,1782011464000,-743.19,0.00030136,2]
[425866443,1782011464000,-500.0,0.00030136,2]
[425866437,1782011464000,-500.0,0.00030136,2]
[425866439,1782011464000,-500.0,0.00030136,2]
[425866458,1782011464000,-500.0,0.00030136,2]
[425866459,1782011464000,-500.0,0.00030136,2]
[425866449,1782011464000,-500.0,0.00030136,2]
[425866448,1782011464000,-547.15,0.00030136,2]
[425866452,1782011464000,-1085.35,0.00030136,2]
[425866450,1782011464000,-500.0,0.00030136,2]
[425866455,1782011464000,-500.0,0.00030136,2]
[425866454,1782011464000,-500.0,0.00030136,2]
[425866453,1782011464000,-500.0,0.00030136,2]
[425866456,1782011464000,-500.0,0.00030136,2]
[425866451,1782011464000,-500.0,0.00030136,2]
[425866457,1782011464000,-500.0,0.00030136,2]
[425866435,1782011464000,-500.0,0.00030136,2]
[425866445,1782011464000,-626.03,0.00030136,2]
[425866433,1782011464000,-500.0,0.00030136,2]
[425866420,1782011464000,-540.04,0.00030136,2]
[425866434,1782011464000,-500.0,0.00030136,2]
[425866463,1782011464000,-500.0,0.00030136,2]
[425866410,1782011464000,-500.0,0.00030136,2]
[425866412,1782011464000,-500.0,0.00030136,2]
[425866411,1782011464000,-500.0,0.00030136,2]
[425866408,1782011464000,-500.0,0.00030136,2]
[425866409,1782011464000,-500.0,0.00030136,2]
[425866407,1782011464000,-500.0,0.00030136,2]
[425866406,1782011464000,-500.0,0.00030136,2]
[425866419,1782011464000,-500.0,0.00030136,2]
[425866415,1782011464000,-500.0,0.00030136,2]
[425866414,1782011464000,-569.32161156,0.00030136,2]
[425866417,1782011464000,-600.96,0.00030136,2]
[425866426,1782011464000,-500.0,0.00030136,2]
[425866416,1782011464000,-500.0,0.00030136,2]
[425866423,1782011464000,-526.65848438,0.00030136,2]
[425866422,1782011464000,-348.28376703,0.00030136,2]
[425866418,1782011464000,-500.0,0.00030136,2]
[425866421,1782011464000,-500.0,0.00030136,2]
[425866425,1782011464000,-500.0,0.00030136,2]
[425866424,1782011464000,-614.5,0.00030136,2]
[425866429,1782011464000,-500.0,0.00030136,2]
[425866428,1782011464000,-500.0,0.00030136,2]
[425866431,1782011464000,-500.0,0.00030136,2]
[425866427,1782011464000,-500.0,0.00030136,2]
[425866430,1782011464000,-500.0,0.00030136,2]
[425866432,1782011464000,-500.0,0.00030136,2]
[425866413,1782011464000,-500.0,0.00030136,2]
[425866460,1782011464000,-500.0,0.00030136,2]
[425866470,1782011464000,-1788.46,0.00030136,2]
[425866467,1782011464000,-500.0,0.00030136,2]
[425866495,1782011464000,-500.0,0.00030136,2]
[425866494,1782011464000,-500.0,0.00030136,2]
[425866505,1782011464000,-500.0,0.00030136,2]
[425866501,1782011464000,-500.0,0.00030136,2]
[425866503,1782011464000,-575.46,0.00030136,2]
[425866496,1782011464000,-625.17,0.00030136,2]
[425866498,1782011464000,-500.0,0.00030136,2]
[425866499,1782011464000,-500.0,0.00030136,2]
[425866497,1782011464000,-1345.31,0.00030136,2]
[425866500,1782011464000,-500.0,0.00030136,2]
[425866502,1782011464000,-523.29,0.00030136,2]
[425866504,1782011464000,-500.0,0.00030136,2]
[425866506,1782011464000,-500.0,0.00030136,2]
[425866507,1782011464000,-500.0,0.00030136,2]
[425866508,1782011464000,-500.0,0.00030136,2]
[425866512,1782011464000,-757.1,0.00030136,2]
[425866513,1782011464000,-500.0,0.00030136,2]
[425866514,1782011464000,-500.0,0.00030136,2]
[425866510,1782011464000,-500.0,0.00030136,2]
[425866509,1782011464000,-500.0,0.00030136,2]
[425866511,1782011464000,-500.0,0.00030136,2]
[425866515,1782011464000,-500.0,0.00030136,2]
[425866516,1782011464000,-500.0,0.00030136,2]
[425866518,1782011464000,-500.0,0.00030136,2]
[425866462,1782011464000,-784.42,0.00030136,2]
[425866490,1782011464000,-500.0,0.00030136,2]
[425866492,1782011464000,-500.0,0.00030136,2]
[425866517,1782011464000,-500.0,0.00030136,2]
[425866491,1782011464000,-932.5,0.00030136,2]
[425866466,1782011464000,-1088.56,0.00030136,2]